bitfinex/quotes_SOLUSD_20250718
["timestamp","ask_amount","ask_price","bid_price","bid_amount"]
[1752816820877,8.46162647,183.59,183.58,0.03]
[1752816821195,37.88162647,183.59,183.58,0.03]
[1752816821397,43.32854623,183.59,183.58,0.03]
[1752816821979,26.0,183.57,183.56,0.03]
[1752816822185,55.42,183.57,183.56,0.03]
[1752816822381,63.18162647,183.57,183.56,0.03]
[1752816822707,37.18162647,183.57,183.56,0.03]
[1752816822999,37.88162647,183.57,183.56,0.03]
[1752816824005,30.12,183.57,183.56,0.03]
[1752816824189,37.88162647,183.57,183.56,0.03]
[1752816824578,37.18162647,183.57,183.56,0.03]
[1752816824882,7.76162647,183.59,183.56,0.03]
[1752816825087,29.42,183.58,183.56,0.03]
[1752816825476,29.42,183.58,183.57,0.65]
[1752816825678,29.42,183.58,183.56,0.03]
[1752816825872,37.18162647,183.58,183.56,0.03]
[1752816826286,7.76162647,183.57,183.56,0.03]
[1752816826488,8.46162647,183.57,183.56,0.03]
[1752816827290,6.14751321,183.57,183.56,0.03]
[1752816828003,0.7,183.57,183.56,0.03]
[1752816828309,8.46162647,183.57,183.56,0.03]
[1752816828490,13.90913968,183.57,183.56,0.03]
[1752816829303,30.69382365,183.57,183.56,0.03]
[1752816829498,69.78872365,183.57,183.56,0.03]
[1752816830097,7.76162647,183.57,183.56,0.03]
[1752816830292,37.18162647,183.57,183.56,0.03]
[1752816830607,37.88162647,183.57,183.56,0.03]
[1752816830900,30.12,183.57,183.56,0.03]
[1752816831102,37.18162647,183.57,183.56,0.03]
[1752816831483,29.42,183.57,183.56,0.03]
[1752816831878,37.88162647,183.57,183.56,0.03]
[1752816832106,26.0,183.58,183.56,0.03]
[1752816832277,4.116,183.63,183.56,0.75]
[1752816832477,7.76162647,183.6,183.56,0.75]
[1752816832704,7.76162647,183.6,183.57,0.72]
[1752816832705,29.4,183.59,183.57,0.72]
[1752816833282,7.76162647,183.61,183.58,5.44721647]
[1752816833484,29.4,183.6,183.58,5.44721647]
[1752816833881,29.4,183.59,183.58,5.44721647]
[1752816834089,7.76162647,183.62,183.58,5.44721647]
[1752816834385,29.4,183.61,183.58,5.44721647]
[1752816834900,7.76162647,183.63,183.59,0.72]
[1752816835110,0.06,183.65,183.6,0.72]
[1752816835294,0.06,183.65,183.61,0.72]
[1752816835489,0.06,183.65,183.64,7.76162647]
[1752816835791,0.06,183.65,183.64,0.72]
[1752816836109,0.06,183.65,183.62,26.72]
[1752816836410,0.06,183.65,183.64,0.72]
[1752816836584,0.06,183.65,183.64,8.48162647]
[1752816836783,0.06,183.65,183.64,0.72]
[1752816838113,0.06,183.65,183.64,6.16543672]
[1752816838520,0.06,183.65,183.64,0.72]
[1752816838892,0.06,183.65,183.63,5.44568953]
[1752816839709,0.06,183.65,183.63,6.16568953]
[1752816841015,0.06,183.65,183.61,7.76162647]
[1752816841192,30.08,183.64,183.56,6.19776167]
[1752816841394,7.76162647,183.6,183.56,0.75]
[1752816841593,29.38,183.59,183.56,0.75]
[1752816841803,29.38,183.59,183.56,6.19775924]
[1752816842488,29.38,183.59,183.57,60.71293279]
[1752816843412,29.38,183.59,183.57,55.265478]
[1752816845525,37.84162647,183.59,183.57,55.265478]
[1752816845893,37.14162647,183.59,183.57,55.265478]
[1752816847200,29.38,183.59,183.57,55.265478]
[1752816847803,26.0,183.61,183.57,55.265478]
[1752816848015,7.76162647,183.59,183.57,55.265478]
[1752816848400,29.38,183.58,183.57,55.265478]
[1752816848913,29.38,183.58,183.57,0.72]
[1752816849523,26.0,183.63,183.57,6.16746173]
[1752816849712,0.06,183.65,183.62,7.76162647]
[1752816849894,29.44,183.65,183.63,0.72]
[1752816850099,0.06,183.65,183.64,0.72]
[1752816851198,0.06,183.65,183.61,8.48162647]
[1752816851619,0.06,183.65,183.62,6.16587124]
[1752816852013,0.06,183.65,183.62,5.44587124]
[1752816852222,0.06,183.65,183.63,0.72]
[1752816852602,0.06,183.65,183.64,0.72]
[1752816853908,0.06,183.65,183.64,6.16543672]
[1752816854623,0.06,183.65,183.64,13.92706319]
[1752816855025,0.06,183.65,183.64,0.72]
[1752816855208,0.06,183.65,183.63,5.44567499]
[1752816855406,0.06,183.65,183.64,0.72]
[1752816856025,0.06,183.65,183.64,6.16543672]
[1752816856338,0.06,183.65,183.64,13.92706319]
[1752816857814,0.06,183.65,183.64,6.16543672]
[1752816858524,0.06,183.65,183.61,0.72]
[1752816858723,0.06,183.65,183.62,0.72]
[1752816859728,0.06,183.65,183.63,0.72]
[1752816859927,0.06,183.65,183.63,6.16571262]
[1752816860237,0.06,183.65,183.63,0.72]
[1752816861135,0.06,183.65,183.63,5.44572376]
[1752816861338,0.06,183.65,183.63,6.15572376]
[1752816861635,0.06,183.65,183.64,0.71]
[1752816862331,0.06,183.65,183.64,6.15543672]
[1752816862839,0.06,183.65,183.64,10.29735664]
[1752816863018,0.06,183.65,183.64,11.00735664]
[1752816864734,0.06,183.65,183.64,6.15543672]
[1752816865727,0.06,183.65,183.64,5.44543672]
[1752816865935,0.06,183.65,183.64,11.00735664]
[1752816866837,0.06,183.65,183.64,6.15543672]
[1752816868527,0.06,183.65,183.64,11.00735664]
[1752816869754,0.06,183.65,183.64,15.3413104]
[1752816869921,1e-08,183.65,183.64,32.12599437]
[1752816870239,1e-08,183.65,183.64,61.44599437]
[1752816870635,1e-08,183.65,183.64,223.52169437]
[1752816870885,0.06,183.69,183.68,21.63660389]
[1752816871040,0.06,183.69,183.68,50.95660389]
[1752816871341,0.06,183.69,183.68,51.66660389]
[1752816871531,0.06,183.69,183.68,34.88191992]
[1752816871721,0.06,183.69,183.68,5.56191992]
[1752816871929,0.06,183.69,183.66,4.85191992]
[1752816872328,0.06,183.69,183.65,5.56191992]
[1752816872524,0.06,183.69,183.65,6.15510999]
[1752816872744,4.91191992,183.69,183.63,5.56191992]
[1752816872943,4.85191992,183.67,183.61,5.44632645]
[1752816873256,5.57191992,183.66,183.6,6.15656447]
[1752816873548,5.57191992,183.66,183.6,11.00848439]
[1752816875055,8.48421944,183.66,183.6,13.92078391]
[1752816875534,8.48421944,183.67,183.61,8.47421944]
[1752816876446,8.48421944,183.67,183.61,13.92033353]
[1752816876945,8.48421944,183.67,183.61,6.15611409]
[1752816878842,13.92877687,183.67,183.61,6.15611409]
[1752816879227,7.76421944,183.63,183.59,5.44685344]
[1752816879549,8.48421944,183.63,183.58,6.15718934]
[1752816879749,8.48421944,183.62,183.58,5.44718934]
[1752816880126,8.48421944,183.62,183.56,8.50421944]
[1752816880127,8.48421944,183.62,183.57,5.4474789]
[1752816880534,8.48421944,183.62,183.57,6.1574789]
[1752816881126,0.72,183.62,183.57,13.92169834]
[1752816881527,7.76421944,183.63,183.56,13.24201318]
[1752816881752,7.76421944,183.6,183.56,0.03]
[1752816881955,7.76421944,183.58,183.56,0.03]
[1752816882251,8.48421944,183.58,183.56,0.03]
[1752816883233,8.48421944,183.57,183.56,0.03]
[1752816883750,0.72,183.57,183.56,0.03]
[1752816886127,8.48421944,183.57,183.56,0.03]
[1752816887748,0.72,183.57,183.56,0.03]
[1752816888458,8.48421944,183.57,183.56,0.03]
[1752816889455,67.5506,183.62,183.56,0.74]
[1752816889456,12.2506,183.62,183.56,0.74]
[1752816889631,37.04421944,183.62,183.56,8.50421944]
[1752816889830,37.04421944,183.62,183.57,0.71]
[1752816890242,7.76421944,183.61,183.57,0.71]
[1752816890643,7.76421944,183.61,183.58,0.71]
[1752816891053,8.48421944,183.61,183.56,0.03]
[1752816891361,7.76421944,183.6,183.57,5.44751321]
[1752816892467,0.72,183.61,183.57,5.44751321]
[1752816892649,8.48421944,183.61,183.57,19.73629623]
[1752816892849,7.76421944,183.61,183.57,19.73629623]
[1752816894050,37.04421944,183.62,183.57,19.73629623]
[1752816894452,37.71421944,183.62,183.57,19.73629623]
[1752816895044,34.8050815,183.62,183.57,19.73629623]
[1752816895351,5.5250815,183.61,183.57,19.73629623]
[1752816895547,5.5250815,183.61,183.57,19.06629623]
[1752816895739,4.8550815,183.61,183.57,19.06629623]
[1752816895939,4.8550815,183.59,183.57,5.44751321]
[1752816896762,16.78468397,183.57,183.56,0.03]
[1752816896969,21.63976547,183.57,183.56,0.03]
[1752816897176,22.30976547,183.57,183.56,0.03]
[1752816897848,0.67,183.57,183.56,0.03]
[1752816898055,29.28,183.58,183.56,0.03]
[1752816898056,5.5250815,183.59,183.56,0.03]
[1752816898371,29.28,183.57,183.56,0.03]
[1752816899155,34.8050815,183.59,183.56,0.03]
[1752816899673,4.8550815,183.58,183.56,0.03]
[1752816899865,4.8550815,183.6,183.56,0.03]
[1752816900045,4.8550815,183.58,183.56,0.03]
[1752816900245,34.1150815,183.59,183.56,0.03]
[1752816900478,29.26,183.59,183.56,4.8850815]
[1752816900656,29.26,183.59,183.56,0.03]
[1752816900861,29.26,183.59,183.56,0.7]
[1752816901249,29.26,183.59,183.57,6.11751321]
[1752816901459,60.1150815,183.62,183.57,5.44751321]
[1752816901657,26.0,183.62,183.58,0.67]
[1752816901851,55.26,183.62,183.58,0.67]
[1752816902059,29.93,183.62,183.58,0.67]
[1752816902359,29.93,183.62,183.57,5.44751321]
[1752816902563,29.26,183.63,183.58,5.5250815]
[1752816902773,29.26,183.63,183.59,0.67]
[1752816903454,34.1150815,183.64,183.6,5.44662309]
[1752816903850,29.26,183.64,183.6,5.44662309]
[1752816904080,0.67,183.64,183.6,5.44662309]
[1752816904282,29.26,183.64,183.6,5.44662309]
[1752816904458,29.26,183.64,183.6,10.30170459]
[1752816904771,29.93,183.64,183.6,5.44662309]
[1752816904980,0.67,183.64,183.6,10.30170459]
[1752816905276,29.26,183.65,183.61,5.5250815]
[1752816905576,5.5250815,183.64,183.57,5.5250815]
[1752816905768,0.67,183.63,183.57,5.5250815]
[1752816906153,0.67,183.63,183.57,0.67]
[1752816906355,0.67,183.63,183.57,5.5250815]
[1752816906861,5.5250815,183.63,183.57,5.5250815]
[1752816907177,4.8550815,183.63,183.56,4.8850815]
[1752816907368,4.8550815,183.61,183.57,5.44751006]
[1752816907679,0.67,183.6,183.57,5.44751006]
[1752816908259,29.24,183.61,183.57,5.44751006]
[1752816908558,29.91,183.61,183.57,5.44751006]
[1752816909287,33.04168397,183.6,183.56,0.03]
[1752816909462,4.8550815,183.57,183.56,0.03]
[1752816909658,15.587,183.6,183.56,0.03]
[1752816909878,29.24,183.6,183.56,0.03]
[1752816910184,0.67,183.59,183.56,0.03]
[1752816910661,26.0,183.61,183.56,0.03]
[1752816910867,29.24,183.6,183.56,5.5550815]
[1752816911180,29.24,183.6,183.56,6.14756802]
[1752816912184,0.67,183.62,183.56,5.47756802]
[1752816912364,10.06,183.73,183.56,5.47756802]
[1752816912365,0.67,183.65,183.57,0.67]
[1752816912571,29.24,183.66,183.61,4.8550815]
[1752816912868,29.91,183.66,183.61,5.5250815]
[1752816913068,4.8550815,183.64,183.56,19.76709297]
[1752816913269,5.5250815,183.64,183.57,4.8550815]
[1752816913856,0.67,183.64,183.57,4.8550815]
[1752816914185,4.8550815,183.63,183.57,5.5250815]
[1752816914384,29.24,183.62,183.56,4.8550815]
[1752816914563,29.24,183.62,183.57,4.8550815]
[1752816914879,29.91,183.62,183.57,0.67]
[1752816915087,29.91,183.62,183.57,5.5250815]
[1752816915272,29.91,183.62,183.58,5.44721647]
[1752816915473,0.67,183.61,183.58,5.44721647]
[1752816915782,0.06,183.65,183.6,4.8550815]
[1752816915962,0.06,183.65,183.64,4.8550815]
[1752816916167,0.06,183.65,183.6,0.67]
[1752816916374,0.06,183.65,183.61,0.67]
[1752816916571,0.06,183.65,183.64,4.8550815]
[1752816917098,0.06,183.65,183.64,5.5250815]
[1752816917298,0.06,183.65,183.64,10.97051822]
[1752816919491,0.06,183.65,183.64,6.11543672]
[1752816919670,0.06,183.65,183.59,0.67]
[1752816919866,0.06,183.65,183.6,4.8550815]
[1752816920067,4.9150815,183.65,183.57,5.44751321]
[1752816920375,4.8550815,183.63,183.57,10.30259471]
[1752816920686,5.5250815,183.64,183.57,10.97259471]
[1752816920985,4.8550815,183.63,183.57,10.97259471]
[1752816921379,4.8550815,183.63,183.57,6.11751321]
[1752816921584,4.8550815,183.63,183.57,10.97259471]
[1752816921776,0.67,183.64,183.58,4.8550815]
[1752816921978,5.5250815,183.64,183.58,4.8550815]
[1752816922365,10.97064552,183.64,183.58,4.8550815]
[1752816922973,10.97064552,183.64,183.57,13.88409942]
[1752816922974,13.88215023,183.64,183.57,13.88409942]
[1752816923289,7.76658621,183.63,183.57,13.88409942]
[1752816923593,13.88215023,183.64,183.58,13.2135855]
[1752816924387,7.76658621,183.63,183.58,5.44699929]
[1752816924689,0.68,183.62,183.58,5.44699929]
[1752816924992,0.68,183.61,183.58,5.44699929]
[1752816925191,0.68,183.61,183.57,5.44748417]
[1752816925899,8.44658621,183.61,183.56,5.44774074]
[1752816926190,7.76658621,183.59,183.52,7.79658621]
[1752816926391,7.76658621,183.57,183.52,0.7]
[1752816926597,0.68,183.56,183.52,0.03]
[1752816926966,24.55127018,183.53,183.52,0.03]
[1752816927166,7.76658621,183.53,183.51,0.03]
[1752816927388,55.88,183.52,183.51,0.03]
[1752816927794,63.64658621,183.52,183.51,0.03]
[1752816928286,34.44658621,183.52,183.51,0.03]
[1752816928487,3.439,183.57,183.51,0.7]
[1752816928686,8.44658621,183.58,183.52,13.21558359]
[1752816929068,7.76658621,183.56,183.51,5.47925594]
[1752816929268,0.68,183.55,183.51,5.47925594]
[1752816929489,8.44658621,183.57,183.51,13.91584215]
[1752816930085,0.68,183.57,183.52,7.76658621]
[1752816930284,0.68,183.56,183.51,13.91584215]
[1752816930481,33.76658621,183.52,183.51,0.03]
[1752816930704,42.78468397,183.52,183.51,0.03]
[1752816930933,64.51787018,183.52,183.51,0.03]
[1752816931288,69.1666,183.52,183.51,0.03]
[1752816931592,3.4882,183.54,183.51,13.2458795]
[1752816931593,26.0,183.54,183.51,13.2458795]
[1752816931770,29.2,183.55,183.52,7.76658621]
[1752816931971,29.2,183.55,183.53,7.76658621]
[1752816932195,29.88,183.6,183.54,8.43658621]
[1752816932400,7.76658621,183.63,183.57,7.76658621]
[1752816932580,26.0,183.6,183.57,7.76658621]
[1752816932782,26.0,183.6,183.55,0.67]
[1752816932990,29.88,183.59,183.53,13.21511823]
[1752816933377,36.96658621,183.59,183.52,13.21554862]
[1752816933581,0.68,183.58,183.54,7.76658621]
[1752816933802,29.2,183.59,183.54,7.76658621]
[1752816933987,0.68,183.58,183.51,5.47924072]
[1752816934179,36.96658621,183.59,183.52,0.67]
[1752816934180,29.2,183.59,183.52,0.67]
[1752816934495,34.44658621,183.57,183.51,7.79658621]
[1752816934703,26.68,183.57,183.51,7.79658621]
[1752816934900,7.76658621,183.54,183.51,0.03]
[1752816935283,29.2,183.55,183.51,0.03]
[1752816935705,0.68,183.54,183.51,0.03]
[1752816936008,8.44658621,183.54,183.51,0.03]
[1752816936205,5.44870048,183.53,183.51,0.03]
[1752816936380,13.89528669,183.53,183.51,0.03]
[1752816936580,8.44658621,183.52,183.51,0.03]
[1752816936800,25.23127018,183.52,183.51,0.03]
[1752816937004,26.68,183.52,183.51,0.03]
[1752816937186,55.18,183.52,183.51,0.03]
[1752816937596,26.0,183.52,183.51,0.03]
[1752816937996,26.68,183.52,183.51,0.03]
[1752816938197,26.0,183.52,183.51,0.03]
[1752816938422,29.18,183.53,183.51,0.03]
[1752816938801,29.86,183.53,183.51,0.03]
[1752816939303,0.68,183.52,183.51,0.03]
[1752816939604,34.44658621,183.52,183.51,0.03]
[1752816939803,51.23127018,183.52,183.51,0.03]
[1752816940007,17.46468397,183.52,183.51,0.03]
[1752816940302,30.68026756,183.52,183.51,0.03]
[1752816940680,22.91368135,183.52,183.51,0.03]
[1752816940921,30.68026756,183.52,183.51,0.03]
[1752816941607,30.68026756,183.52,183.48,0.03]
[1752816941608,42.78468397,183.49,183.48,0.03]
[1752816941811,79.73127018,183.49,183.48,0.03]
[1752816942110,80.41127018,183.49,183.48,0.03]
[1752816942307,85.86115845,183.49,183.48,0.03]
[1752816943495,105.73354466,183.49,183.47,0.03]
[1752816943818,32.99785639,183.48,183.47,0.03]
[1752816944184,32.99785639,183.48,183.47,1e-08]
[1752816944389,38.44804169,183.48,183.47,1e-08]
[1752816944886,22.91486927,183.48,183.47,1e-08]
[1752816945086,59.86145548,183.48,183.47,1e-08]
[1752816945709,67.62804169,183.48,183.47,1e-08]
[1752816946005,59.86145548,183.48,183.47,1e-08]
[1752816947500,67.62804169,183.48,183.47,1e-08]
[1752816947809,42.78468397,183.46,183.45,1e-08]
[1752816947988,79.73127018,183.46,183.45,1e-08]
[1752816948187,80.41127018,183.46,183.45,1e-08]
[1752816948505,85.86204964,183.46,183.45,1e-08]
[1752816948691,53.86697018,183.42,183.41,1e-08]
[1752816948899,95.17217018,183.42,183.41,1e-08]
[1752816949097,95.17217018,183.42,183.38,0.2]
[1752816949098,42.78468397,183.39,183.38,1e-08]
[1752816949289,89.95938295,183.39,183.38,1e-08]
[1752816949490,16.78468397,183.38,183.37,1e-08]
[1752816949693,16.78468397,183.34,183.32,0.2]
[1752816949907,53.73127018,183.33,183.32,0.2]
[1752816950103,54.41127018,183.33,183.32,0.2]
[1752816950501,59.8659148,183.33,183.32,0.2]
[1752816950702,52.09932859,183.33,183.32,0.2]
[1752816951321,59.8659148,183.33,183.32,0.2]
[1752816951812,33.76658621,183.33,183.32,0.2]
[1752816952002,62.94658621,183.33,183.32,0.2]
[1752816952204,29.18,183.33,183.32,0.2]
[1752816952402,54.44127018,183.33,183.32,0.2]
[1752816952602,59.8959148,183.33,183.32,0.2]
[1752816952997,24.55127018,183.33,183.32,0.2]
[1752816953187,59.1859148,183.33,183.32,0.2]
[1752816954010,59.8959148,183.33,183.32,0.2]
[1752816956488,42.78468397,183.29,183.2,0.71]
[1752816956694,26.0,183.25,183.2,0.71]
[1752816956896,29.18,183.24,183.2,0.71]
[1752816957111,29.18,183.24,183.19,7.76658621]
[1752816957299,29.18,183.24,183.21,0.71]
[1752816957499,7.76658621,183.22,183.17,4.218]
[1752816957700,29.18,183.21,183.18,0.71]
[1752816958503,13.22513985,183.2,183.15,0.71]
[1752816958709,29.18,183.19,183.15,6.16994504]
[1752816958909,29.18,183.18,183.16,0.71]
[1752816959215,29.18,183.17,183.16,0.71]
[1752816959390,29.18,183.17,183.14,2.78856027]
[1752816959590,33.76658621,183.22,183.16,8.47658621]
[1752816959791,29.18,183.24,183.21,7.76658621]
[1752816960015,36.94658621,183.23,183.18,0.71]
[1752816960316,7.76658621,183.21,183.18,0.71]
[1752816960499,29.18,183.2,183.19,0.71]
[1752816960699,29.18,183.22,183.19,8.47658621]
[1752816960943,29.18,183.24,183.21,7.76658621]
[1752816961297,16.78468397,183.28,183.22,8.47658621]
[1752816961504,7.76658621,183.3,183.24,7.76658621]
[1752816961714,29.18,183.29,183.26,7.76658621]
[1752816961899,8.73689458,183.36,183.27,0.71]
[1752816962092,22.29701277,183.39,183.29,7.76658621]
[1752816962093,29.18,183.35,183.29,7.76658621]
[1752816962418,36.94658621,183.34,183.29,0.71]
[1752816962715,36.94658621,183.34,183.23,13.64335732]
[1752816962716,7.76658621,183.31,183.25,0.71]
[1752816962924,29.18,183.3,183.26,7.76658621]
[1752816963124,29.18,183.29,183.27,0.71]
[1752816964026,29.18,183.29,183.25,8.47658621]
[1752816964523,29.18,183.29,183.25,6.16679928]
[1752816964824,29.18,183.29,183.26,8.47658621]
[1752816964994,29.18,183.29,183.26,7.76658621]
[1752816965198,29.18,183.29,183.27,0.71]
[1752816965394,29.18,183.29,183.26,7.76658621]
[1752816965395,29.18,183.29,183.28,0.71]
[1752816965599,29.18,183.29,183.26,7.76658621]
[1752816965816,29.18,183.29,183.27,0.71]
[1752816966021,29.18,183.29,183.25,5.45679928]
[1752816966627,29.18,183.29,183.24,5.45732372]
[1752816966831,29.18,183.29,183.25,8.47658621]
[1752816967029,29.18,183.29,183.25,7.76658621]
[1752816967212,29.18,183.29,183.26,0.71]
[1752816967525,29.18,183.3,183.27,8.47658621]
[1752816967711,29.18,183.3,183.28,0.71]
[1752816968445,29.18,183.3,183.26,7.76658621]
[1752816968601,29.18,183.3,183.27,5.4564304]
[1752816969024,36.94658621,183.3,183.25,5.45700825]
[1752816969228,37.65658621,183.3,183.25,5.45700825]
[1752816969530,0.71,183.29,183.25,5.45700825]
[1752816969827,36.94658621,183.3,183.25,5.45700825]
[1752816970025,7.76658621,183.28,183.21,3.3696]
[1752816970201,36.94658621,183.27,183.2,8.47658621]
[1752816970402,29.18,183.27,183.22,7.76658621]
[1752816970630,29.18,183.27,183.24,5.45732372]
[1752816970818,29.18,183.27,183.24,6.16732372]
[1752816971014,7.76658621,183.29,183.24,6.16732372]
[1752816971314,29.18,183.28,183.24,6.16732372]
[1752816972914,29.18,183.28,183.24,5.45732372]
[1752816973119,29.18,183.28,183.25,0.71]
[1752816973716,29.18,183.28,183.26,0.71]
[1752816974120,33.76658621,183.3,183.26,0.71]
[1752816974334,29.16,183.29,183.24,13.22390993]
[1752816974542,29.16,183.29,183.23,6.16753715]
[1752816974543,7.76658621,183.28,183.23,6.16753715]
[1752816974919,8.47658621,183.28,183.23,6.16753715]
[1752816975235,36.92658621,183.29,183.24,0.71]
[1752816975430,36.92658621,183.29,183.24,8.47658621]
[1752816975431,29.16,183.29,183.24,8.47658621]
[1752816975633,29.16,183.29,183.24,7.76658621]
[1752816975826,29.16,183.29,183.25,0.71]
[1752816976723,29.16,183.28,183.26,5.45672814]
[1752816977319,29.16,183.28,183.26,6.16672814]
[1752816978813,29.16,183.28,183.25,5.45702592]
[1752816979036,29.16,183.28,183.25,6.16702592]
[1752816979237,26.0,183.3,183.25,6.16702592]
[1752816979736,29.16,183.29,183.25,6.16702592]
[1752816980613,29.16,183.29,183.26,0.71]
[1752816980818,0.06,183.32,183.28,7.76658621]
[1752816981143,29.16,183.31,183.29,7.76658621]
[1752816981519,0.06,183.32,183.3,0.7]
[1752816981830,0.06,183.32,183.31,7.76658621]
[1752816982216,0.06,183.32,183.31,8.46658621]
[1752816982620,0.06,183.32,183.31,0.7]
[1752816982833,0.06,183.32,183.31,13.92182596]
[1752816983017,0.06,183.32,183.3,5.45548938]
[1752816983632,0.06,183.32,183.3,13.22207559]
[1752816983834,0.06,183.32,183.3,5.45548938]
[1752816984726,0.06,183.32,183.3,6.15548938]
[1752816985319,0.06,183.32,183.28,6.15613269]
[1752816985829,0.06,183.32,183.29,7.76658621]
[1752816986036,0.06,183.32,183.28,5.45613269]
[1752816986226,0.06,183.32,183.29,7.76658621]
[1752816986428,0.06,183.32,183.29,8.46658621]
[1752816986629,0.06,183.32,183.3,0.7]
[1752816987022,0.06,183.32,183.28,5.45613269]
[1752816987230,0.06,183.32,183.28,13.2227189]
[1752816987644,0.74,183.32,183.28,13.2227189]
[1752816987830,0.06,183.32,183.29,8.46658621]
[1752816988031,0.06,183.32,183.3,0.7]
[1752816988939,0.06,183.32,183.31,5.45523975]
[1752816989834,0.06,183.32,183.3,5.45553737]
[1752816991146,0.06,183.32,183.29,8.46658621]
[1752816991341,0.06,183.32,183.29,0.7]
[1752816991653,0.06,183.32,183.3,8.46658621]
[1752816992034,0.06,183.32,183.3,5.45553737]
[1752816993028,0.06,183.32,183.3,13.22212358]
[1752816993348,1e-08,183.32,183.31,13.92182596]
[1752816994650,1e-08,183.32,183.31,6.15523975]
[1752816994825,1e-08,183.32,183.31,13.92182596]
[1752816995025,1e-08,183.32,183.31,13.22182596]
[1752816995226,1e-08,183.32,183.31,13.92182596]
[1752816995629,1e-08,183.32,183.31,5.45523975]
[1752816995934,1e-08,183.32,183.31,13.92182596]
[1752816996126,1e-08,183.32,183.31,6.15523975]
[1752816996332,1e-08,183.32,183.31,13.92182596]
[1752816997337,1e-08,183.36,183.31,34.06800993]
[1752816997542,0.06,183.4,183.38,26.0]
[1752816997730,3.2033,183.49,183.39,33.76658621]
[1752816997731,0.68,183.49,183.39,33.76658621]
[1752816997930,0.68,183.49,183.47,7.76658621]
[1752816998245,30.0,183.48,183.42,3.5389]
[1752816998468,30.0,183.48,183.46,7.76658621]
[1752816998741,30.68,183.48,183.45,7.76658621]
[1752816999058,0.68,183.48,183.45,7.76658621]
[1752816999248,0.68,183.48,183.44,13.21795995]
[1752816999445,0.68,183.47,183.43,13.21819995]
[1752816999645,0.68,183.46,183.42,13.2185454]
[1752816999837,7.76658621,183.48,183.36,4.96390845]
[1752816999838,26.0,183.42,183.36,4.96390845]
[1752817000039,26.0,183.42,183.36,4.26390845]
[1752817000040,7.76658621,183.38,183.36,4.26390845]
[1752817000227,37.56658621,183.41,183.36,17.48413803]
[1752817000442,29.12,183.41,183.37,8.46658621]
[1752817000629,29.12,183.41,183.38,0.7]
[1752817000829,26.0,183.42,183.39,5.45286002]
[1752817001045,26.68,183.42,183.38,5.45311243]
[1752817001644,26.0,183.43,183.38,13.21969864]
[1752817001848,26.68,183.43,183.38,13.21969864]
[1752817002050,3.3244,183.49,183.42,7.76658621]
[1752817002254,12.4737,183.52,183.47,7.76658621]
[1752817002430,12.4737,183.52,183.48,7.76658621]
[1752817002631,13.1537,183.52,183.48,7.76658621]
[1752817002938,13.1537,183.52,183.48,13.21656081]
[1752817003734,13.1537,183.52,183.49,7.76658621]
[1752817003928,13.1537,183.52,183.48,13.21656081]
[1752817004446,0.06,183.52,183.48,13.21656081]
[1752817004652,0.06,183.52,183.49,7.76658621]
[1752817004840,0.06,183.52,183.5,7.76658621]
[1752817005251,16.78468397,183.5,183.44,5.45137374]
[1752817005442,29.1,183.5,183.44,13.21795995]
[1752817005646,36.86658621,183.5,183.44,13.21795995]
[1752817006042,29.1,183.5,183.45,13.21750055]
[1752817006354,29.1,183.5,183.46,0.7]
[1752817006559,29.78,183.5,183.45,15.95351559]